Workbook

Sheet 1
A1: Школа | B1: МБОУ Лицей №188 | E1: Отд./корп | I1: День | J1: 25.02.2023
A3: Прием пищи | B3: Раздел | C3: № рец. | D3: Блюдо | E3: Выход, г | F3: Цена | G3: Калорийность | H3: Белки | I3: Жиры | J3: Углеводы
A4: Завтрак | B4: ='[1]6-11, 20-25 фев.'!B42 -> гор.блюдо | C4: ='[1]6-11, 20-25 фев.'!C42 -> № 243/2015 г | D4: ='[1]6-11, 20-25 фев.'!D42 -> Сосиски отварные | E4: ='[1]6-11, 20-25 фев.'!E42 -> 100 | G4: ='[1]6-11, 20-25 фев.'!G42 -> 144.00 | H4: ='[1]6-11, 20-25 фев.'!H42 -> 9.40 | I4: ='[1]6-11, 20-25 фев.'!I42 -> 11.00 | J4: ='[1]6-11, 20-25 фев.'!J42 -> 1.80
B5: ='[1]6-11, 20-25 фев.'!B43 -> гор.блюдо | C5: ='[1]6-11, 20-25 фев.'!C43 -> № 202/2015 г | D5: ='[1]6-11, 20-25 фев.'!D43 -> Макаронные изделия отваренные | E5: ='[1]6-11, 20-25 фев.'!E43 -> 150 | G5: ='[1]6-11, 20-25 фев.'!G43 -> 180.00 | H5: ='[1]6-11, 20-25 фев.'!H43 -> 5.60 | I5: ='[1]6-11, 20-25 фев.'!I43 -> 5.06 | J5: ='[1]6-11, 20-25 фев.'!J43 -> 35.91
B6: ='[1]6-11, 20-25 фев.'!B44 -> гор.напиток | C6: ='[1]6-11, 20-25 фев.'!C44 -> ТТК 2021 г | D6: ='[1]6-11, 20-25 фев.'!D44 -> Компот из замороженной компотной смеси | E6: ='[1]6-11, 20-25 фев.'!E44 -> 200 | G6: ='[1]6-11, 20-25 фев.'!G44 -> 46.00 | H6: ='[1]6-11, 20-25 фев.'!H44 -> 0.13 | I6: ='[1]6-11, 20-25 фев.'!I44 -> 0.02 | J6: ='[1]6-11, 20-25 фев.'!J44 -> 11.15
B7: ='[1]6-11, 20-25 фев.'!B45 -> хлеб | D7: ='[1]6-11, 20-25 фев.'!D45 -> Хлеб ржано-пшеничный | E7: ='[1]6-11, 20-25 фев.'!E45 -> 15 | G7: ='[1]6-11, 20-25 фев.'!G45 -> 33.00 | H7: ='[1]6-11, 20-25 фев.'!H45 -> 0.75 | I7: ='[1]6-11, 20-25 фев.'!I45 -> 0.15 | J7: ='[1]6-11, 20-25 фев.'!J45 -> 6.75
B8: ='[1]6-11, 20-25 фев.'!B46 -> хлеб | D8: ='[1]6-11, 20-25 фев.'!D46 -> Хлеб пшеничный | E8: ='[1]6-11, 20-25 фев.'!E46 -> 15 | G8: ='[1]6-11, 20-25 фев.'!G46 -> 35.00 | H8: ='[1]6-11, 20-25 фев.'!H46 -> 1.14 | I8: ='[1]6-11, 20-25 фев.'!I46 -> 0.12 | J8: ='[1]6-11, 20-25 фев.'!J46 -> 7.38
B9: ='[1]6-11, 20-25 фев.'!B47 -> печенье | C9: ='[1]6-11, 20-25 фев.'!C47 -> Акт 2019 | D9: ='[1]6-11, 20-25 фев.'!D47 -> Печенье | E9: ='[1]6-11, 20-25 фев.'!E47 -> 30 | G9: ='[1]6-11, 20-25 фев.'!G47 -> 144.00 | H9: ='[1]6-11, 20-25 фев.'!H47 -> 2.17 | I9: ='[1]6-11, 20-25 фев.'!I47 -> 4.24 | J9: ='[1]6-11, 20-25 фев.'!J47 -> 20.51
A12: ИТОГО | E12: ='[1]6-11, 20-25 фев.'!E48 -> 510 | F12: 62.10 | G12: ='[1]6-11, 20-25 фев.'!G48 -> 582 | H12: ='[1]6-11, 20-25 фев.'!H48 -> 19.19 | I12: ='[1]6-11, 20-25 фев.'!I48 -> 20.59 | J12: ='[1]6-11, 20-25 фев.'!J48 -> 83.50
